bitfinex/quotes_SOLUSD_20250805
["timestamp","ask_amount","ask_price","bid_price","bid_amount"]
[1754377590593,21.37972249,167.91,167.87,87.61999998]
[1754377590902,21.37972249,167.91,167.87,93.57686389]
[1754377591076,6.27350692,167.9,167.87,86.89999998]
[1754377591392,21.37972249,167.88,167.84,5.95797925]
[1754377591592,21.37972249,167.87,167.83,0.72]
[1754377591775,21.37972249,167.87,167.83,6.67828757]
[1754377592897,6.27350692,167.86,167.82,5.95863416]
[1754377593064,6.27350692,167.86,167.82,6.67863416]
[1754377593267,48.29350692,167.86,167.82,6.67863416]
[1754377593670,48.29350692,167.86,167.82,93.57863414]
[1754377593870,48.29350692,167.86,167.82,87.61999998]
[1754377594076,21.37972249,167.83,167.82,86.89999998]
[1754377594284,15.10621557,167.82,167.81,0.06]
[1754377594495,21.96972249,167.82,167.81,0.06]
[1754377596701,31.8948965,167.82,167.81,0.06]
[1754377599179,34.2824575,167.82,167.81,0.06]
[1754377599495,33.6924575,167.82,167.81,0.06]
[1754377599700,69.77369216,167.82,167.81,0.06]
[1754377599872,75.7324575,167.82,167.81,0.06]
[1754377600073,76.3224575,167.82,167.81,0.06]
[1754377600379,75.7324575,167.82,167.81,0.06]
[1754377600583,67.38613116,167.82,167.81,0.06]
[1754377600788,67.38613116,167.82,167.81,0.78]
[1754377600789,57.14621557,167.82,167.81,0.78]
[1754377601880,42.04,167.82,167.81,6.73912043]
[1754377602189,10.23991559,167.88,167.81,16.97903602]
[1754377602380,42.04,167.87,167.82,0.72]
[1754377602575,15.10621557,167.86,167.84,10.23991559]
[1754377602779,15.10621557,167.86,167.85,0.72]
[1754377603520,15.10621557,167.86,167.85,6.67770032]
[1754377603805,42.04,167.87,167.85,16.91761591]
[1754377603984,42.04,167.87,167.85,6.67770032]
[1754377604197,42.04,167.87,167.85,0.72]
[1754377604395,42.04,167.87,167.85,5.95765597]
[1754377604595,42.04,167.87,167.86,0.72]
[1754377606415,42.04,167.87,167.83,10.23991559]
[1754377606618,25.34613116,167.84,167.81,0.06]
[1754377606783,42.04,167.84,167.81,0.06]
[1754377606983,10.23991559,167.83,167.81,0.06]
[1754377607186,52.27991559,167.84,167.81,0.06]
[1754377607488,52.27991559,167.84,167.81,0.78]
[1754377608207,42.04,167.84,167.81,6.73896567]
[1754377608412,52.27991559,167.84,167.81,0.78]
[1754377609401,25.34613116,167.83,167.81,0.06]
[1754377609607,67.36613116,167.82,167.81,0.06]
[1754377611009,67.95613116,167.82,167.81,0.06]
[1754377611216,73.9148965,167.82,167.81,0.06]
[1754377614502,76.3023155,167.82,167.81,0.06]
[1754377619648,65.49239991,167.82,167.81,0.06]
[1754377619932,69.77355016,167.82,167.81,0.06]
[1754377620130,69.77355016,167.82,167.81,0.78]
[1754377620305,57.14621557,167.82,167.81,0.78]
[1754377620497,67.38613116,167.82,167.81,0.78]
[1754377622037,67.97613116,167.82,167.81,0.06]
[1754377622203,67.97613116,167.82,167.77,0.06]
[1754377622204,15.10621557,167.79,167.77,0.06]
[1754377622404,93.38613116,167.78,167.77,0.06]
[1754377622625,93.97613116,167.78,167.77,0.06]
[1754377623004,93.38613116,167.78,167.77,0.06]
[1754377623409,101.73459111,167.78,167.77,0.06]
[1754377623611,102.32459111,167.78,167.77,0.06]
[1754377624428,101.73459111,167.78,167.77,0.06]
[1754377624605,95.77440516,167.78,167.77,0.06]
[1754377625816,101.73459111,167.78,167.77,0.06]
[1754377626017,95.77440516,167.78,167.77,0.06]
[1754377626228,101.73459111,167.78,167.77,0.06]
[1754377627230,69.77440516,167.78,167.77,0.78]
[1754377627429,57.14621557,167.78,167.77,0.78]
[1754377627806,57.14621557,167.78,167.77,6.74054121]
[1754377628013,5.95818093,167.84,167.77,16.9804568]
[1754377628207,10.299915,167.8,167.78,10.95991559]
[1754377628413,42.04,167.8,167.79,0.72]
[1754377629651,57.14621557,167.8,167.79,0.72]
[1754377631772,42.04,167.8,167.79,6.67983074]
[1754377632020,42.04,167.82,167.79,16.91974633]
[1754377632242,42.04,167.82,167.8,0.72]
[1754377632432,57.14621557,167.82,167.81,0.72]
[1754377633451,15.10621557,167.81,167.79,93.57983072]
[1754377633663,15.10621557,167.81,167.8,0.72]
[1754377635253,15.10621557,167.81,167.79,86.95999998]
[1754377635453,42.04,167.8,167.79,86.95999998]
[1754377635668,42.04,167.8,167.79,87.67999998]
[1754377636952,42.04,167.8,167.79,103.87974631]
[1754377637147,57.14621557,167.82,167.79,103.87974631]
[1754377637337,57.14621557,167.82,167.81,10.23991559]
[1754377637669,15.10621557,167.82,167.81,0.72]
[1754377637842,42.07,167.83,167.81,0.72]
[1754377638040,42.07,167.83,167.81,87.61999998]
[1754377638241,0.03,167.83,167.82,0.72]
[1754377639341,15.13621557,167.83,167.81,86.89999998]
[1754377639770,57.14621557,167.82,167.81,86.89999998]
[1754377640153,57.14621557,167.82,167.81,87.61999998]
[1754377640347,42.04,167.82,167.81,86.89999998]
[1754377640567,67.38613116,167.82,167.81,86.89999998]
[1754377641791,57.14621557,167.82,167.81,86.89999998]
[1754377642440,73.3448965,167.82,167.81,86.89999998]
[1754377642648,67.38613116,167.82,167.81,86.89999998]
[1754377643388,67.38613116,167.82,167.79,0.78]
[1754377643389,57.14621557,167.82,167.79,87.67999998]
[1754377643596,57.14621557,167.82,167.8,0.72]
[1754377644189,57.14621557,167.82,167.81,0.72]
[1754377644395,0.03,167.83,167.81,10.95991559]
[1754377644699,0.03,167.83,167.79,6.01952748]
[1754377644700,0.03,167.85,167.82,10.95991559]
[1754377644861,0.03,167.85,167.84,10.23991559]
[1754377645356,0.03,167.85,167.84,10.95991559]
[1754377645982,0.03,167.85,167.84,16.91797088]
[1754377653076,0.03,167.87,167.84,69.17788647]
[1754377653276,0.03,167.87,167.86,10.23991559]
[1754377653685,0.03,167.87,167.86,10.92991559]
[1754377654370,0.03,167.87,167.86,16.88726099]
[1754377654786,0.03,167.87,167.86,12.92024879]
[1754377658205,0.03,167.87,167.86,99.82024877]
[1754377659207,0.03,167.87,167.86,141.82024877]
[1754377666106,0.03,167.89,167.87,86.86999998]
[1754377666410,0.03,167.89,167.88,48.27290339]
[1754377666587,0.03,167.89,167.88,135.83290337]
[1754377667307,0.03,167.89,167.88,141.78953906]
[1754377671490,0.03,167.9,167.89,86.83999998]
[1754377671703,0.03,167.9,167.89,93.80290337]
[1754377672925,0.03,167.9,167.89,99.75918426]
[1754377673285,0.03,167.94,167.89,115.24551458]
[1754377673620,0.03,167.94,167.93,6.27290339]
[1754377673917,0.03,167.94,167.93,135.09290337]
[1754377674887,0.03,167.94,167.93,141.04776551]
[1754377675522,0.03,167.94,167.93,141.73776551]
[1754377676310,0.03,167.94,167.93,135.09290337]
[1754377676524,0.03,167.94,167.93,128.81999998]
[1754377676838,0.65,167.94,167.93,93.11290337]
[1754377677019,0.65,167.94,167.92,41.98]
[1754377677020,6.92290339,167.94,167.89,12.22906579]
[1754377677190,6.60464386,167.94,167.9,6.27290339]
[1754377677392,5.98464386,167.94,167.9,6.27290339]
[1754377677696,0.62,167.93,167.89,48.25290339]
[1754377678113,0.62,167.92,167.9,6.27290339]
[1754377679224,0.62,167.91,167.86,112.89999998]
[1754377679407,0.62,167.91,167.87,48.25290339]
[1754377679592,0.62,167.91,167.87,6.27290339]
[1754377679794,0.62,167.9,167.87,6.27290339]
[1754377679988,15.10621557,167.93,167.86,48.31290339]
[1754377679989,21.06107771,167.93,167.86,48.31290339]
[1754377680194,0.62,167.9,167.86,48.31290339]
[1754377680408,0.62,167.9,167.86,54.2702286]
[1754377680609,0.62,167.9,167.86,12.2902286]
[1754377681441,27.3340712,167.93,167.88,6.27290339]
[1754377681732,21.06116781,167.93,167.89,6.93290339]
[1754377681933,0.65,167.94,167.91,6.27290339]
[1754377682234,0.03,167.94,167.93,6.27290339]
[1754377683701,0.03,167.94,167.93,12.88776553]
[1754377685397,0.03,167.94,167.93,54.86776553]
[1754377690045,0.03,167.94,167.93,61.14066892]
[1754377690432,0.03,167.94,167.93,54.86776553]
[1754377690940,0.2,167.95,167.94,86.80999998]
[1754377691142,0.2,167.95,167.94,99.69741093]
[1754377691305,0.2,167.95,167.94,93.08290337]
[1754377691505,0.4,167.95,167.91,41.96]
[1754377691845,0.4,167.95,167.92,6.27290339]
[1754377691846,0.2,167.94,167.92,6.27290339]
[1754377692015,0.2,167.94,167.91,6.27290339]
[1754377692634,0.2,167.95,167.91,6.27290339]
[1754377692826,0.82,167.95,167.92,6.27290339]
[1754377694445,0.2,167.95,167.92,6.27290339]
[1754377694743,0.2,167.95,167.94,6.27290339]
[1754377694935,0.2,167.95,167.94,48.23290339]
[1754377695306,0.2,167.95,167.94,48.89290339]
[1754377696436,0.2,167.95,167.94,54.84741095]
[1754377696650,0.2,167.95,167.94,54.18741095]
[1754377696938,0.2,167.95,167.94,12.22741095]
[1754377699242,0.2,167.95,167.94,12.88741095]
[1754377699844,0.2,167.95,167.94,12.22741095]
[1754377702537,0.2,167.95,167.94,99.03741093]
[1754377702845,0.2,167.95,167.94,99.69741093]
[1754377704754,0.82,167.95,167.94,86.80999998]
[1754377704922,0.2,167.95,167.94,86.80999998]
[1754377706928,0.2,167.95,167.94,93.08290337]
[1754377709122,0.2,167.95,167.94,86.80999998]
[1754377709748,0.82,167.95,167.94,86.80999998]
[1754377709956,0.2,167.95,167.94,86.80999998]
[1754377711043,0.2,167.95,167.94,93.08290337]
[1754377711263,0.2,167.95,167.94,99.03741093]
[1754377711753,0.2,167.95,167.94,93.47450754]
[1754377711960,0.2,167.95,167.94,99.74741093]
[1754377713260,0.2,167.95,167.94,93.08290337]
[1754377713466,0.82,167.95,167.94,86.80999998]
[1754377713668,0.82,167.95,167.91,41.94]
[1754377713669,7.09290339,167.95,167.91,86.80999998]
[1754377713952,6.89290339,167.94,167.91,86.80999998]
[1754377714263,0.62,167.93,167.91,86.80999998]
[1754377714441,6.27290339,167.94,167.91,86.80999998]
[1754377714758,0.2,167.95,167.91,93.47556209]
[1754377714934,15.30621557,167.95,167.91,92.76556209]
[1754377715261,21.57911896,167.95,167.91,87.51999998]
[1754377715647,22.19911896,167.95,167.91,87.51999998]
[1754377716263,0.2,167.95,167.94,6.27290339]
[1754377716433,0.2,167.95,167.94,6.98290339]
[1754377716636,0.2,167.95,167.93,6.27290339]
[1754377716943,0.2,167.95,167.91,141.68820066]
[1754377717148,0.82,167.95,167.91,141.68820066]
[1754377717348,0.2,167.95,167.91,141.68820066]
[1754377717531,0.2,167.95,167.94,6.27290339]
[1754377718037,0.2,167.95,167.94,6.98290339]
[1754377718856,0.2,167.95,167.94,106.61576507]
[1754377719667,0.2,167.99,167.98,26.0]
[1754377719832,0.2,167.99,167.98,74.80821235]
[1754377720034,0.2,167.99,167.98,75.51821235]
[1754377720435,0.2,168.04,167.98,75.51821235]
[1754377720631,0.2,168.04,167.99,6.98290339]
[1754377720844,0.2,168.04,167.99,12.93563867]
[1754377722957,0.82,168.04,167.99,12.22563867]
[1754377724350,0.82,168.04,167.99,12.93563867]
[1754377724659,0.2,168.04,167.99,12.93563867]
[1754377727259,0.82,168.04,167.99,12.93563867]
[1754377728271,0.82,168.03,167.99,54.14563867]
[1754377729057,0.82,168.03,167.99,54.85563867]
[1754377729366,0.2,168.03,167.99,141.66563865]
[1754377731780,0.2,168.03,168.02,66.23019998]
[1754377731968,0.2,168.03,168.02,114.42310337]
[1754377732156,0.2,168.03,168.02,115.13310337]
[1754377733265,0.2,168.03,168.02,121.08477578]
[1754377734155,0.2,168.03,168.02,127.35767917]
[1754377735174,1e-08,168.03,168.02,127.35767917]
[1754377738165,0.2,168.05,168.03,15.10621557]
[1754377738366,0.2,168.05,168.04,48.78799979]
[1754377738562,0.2,168.05,168.04,49.49799979]
[1754377739081,0.2,168.07,168.06,26.0]
[1754377739271,0.2,168.07,168.06,80.14315925]
[1754377739673,0.2,168.07,168.06,80.85315925]
[1754377740371,1e-08,168.07,168.06,80.85315925]
[1754377741162,1e-08,168.07,168.06,80.12315925]
[1754377741362,1e-08,168.07,168.06,80.83315925]
[1754377743068,1e-08,168.07,168.06,80.12315925]
[1754377743861,1e-08,168.07,168.06,80.83315925]
[1754377744489,1e-08,168.07,168.06,80.12315925]
[1754377744684,1e-08,168.07,168.06,80.83315925]
[1754377745387,1e-08,168.07,168.06,81.42818483]
[1754377745968,0.2,168.12,168.11,66.23019997]
[1754377746168,0.2,168.12,168.11,114.40310336]
[1754377746478,0.86,168.12,168.11,114.40310336]
[1754377747297,0.2,168.12,168.11,120.35158947]
[1754377747474,0.86,168.12,168.11,114.40310336]
[1754377748291,0.86,168.12,168.11,66.23019997]
[1754377748603,0.86,168.12,168.11,108.13019997]
[1754377748783,0.2,168.12,168.11,114.40310336]
[1754377749169,0.2,168.12,168.11,120.35158947]
[1754377750865,0.2,168.12,168.11,114.07868608]
[1754377751084,0.2,168.12,168.11,120.35158947]
[1754377753473,0.86,168.12,168.11,114.40310336]
[1754377753676,0.86,168.12,168.11,108.13019997]
[1754377753878,0.86,168.12,168.11,66.23019997]
[1754377754078,0.86,168.12,168.11,108.11019997]
[1754377754377,0.2,168.12,168.11,114.38310336]
[1754377755592,0.86,168.12,168.11,108.11019997]
[1754377756929,0.2,168.12,168.11,108.11019997]
[1754377757272,0.2,168.12,168.11,114.38310336]
[1754377757795,0.2,168.12,168.11,120.33158947]
[1754377758392,0.2,168.12,168.11,121.04158947]
[1754377760777,0.2,168.12,168.11,108.11019997]
[1754377760974,0.86,168.12,168.11,108.11019997]
[1754377761497,0.86,168.12,168.09,108.11019997]
[1754377761794,0.66,168.11,168.09,108.11019997]
[1754377762001,0.66,168.1,168.09,108.11019997]
[1754377762201,6.93290339,168.1,168.06,66.23019997]
[1754377762397,6.93290339,168.1,168.03,66.23019997]
[1754377762398,6.27290339,168.08,168.03,66.23019997]
[1754377762589,6.27290339,168.06,168.0,5.95238095]
[1754377762796,6.93290339,168.05,168.01,41.88]
[1754377762999,0.66,168.04,168.01,41.88]
[1754377763395,6.27290339,168.05,168.0,5.95238095]
[1754377763598,0.66,168.03,168.01,41.88]
[1754377763910,6.27290339,168.05,168.0,48.15290339]
[1754377764111,6.93290339,168.05,168.0,54.81526022]
[1754377764312,6.27290339,168.01,167.94,42.92]
[1754377764487,6.93290339,168.01,167.95,42.59]
[1754377764689,6.93290339,168.01,167.96,32.27290339]
[1754377764913,6.93290339,168.01,167.97,41.88]
[1754377765720,0.66,168.0,167.97,41.88]
[1754377766727,5.95169114,168.02,167.94,0.06]
[1754377766728,6.93290339,167.99,167.94,0.06]
[1754377766895,6.27290339,167.98,167.95,41.88]
[1754377767096,0.66,167.97,167.94,41.94]
[1754377767718,0.66,167.97,167.94,47.89446916]
[1754377767923,0.66,167.96,167.94,47.89446916]
[1754377768324,6.93290339,167.98,167.94,47.89446916]
[1754377769123,41.77621557,168.03,167.96,6.27290339]
[1754377769325,6.27290339,168.01,167.96,48.86290339]
[1754377769500,6.27290339,168.01,167.97,0.71]
[1754377769696,6.94290339,168.01,167.97,0.71]
[1754377770707,6.94290339,168.01,167.96,54.10663904]
[1754377771100,6.94290339,168.01,167.96,54.81663904]
[1754377772007,6.27290339,168.0,167.96,54.81663904]
[1754377772526,6.94290339,168.0,167.96,41.88]
[1754377773520,6.94290339,168.0,167.96,108.11019997]
[1754377774438,6.94290339,168.0,167.96,108.82019997]
[1754377775425,6.27290339,168.0,167.96,114.77398424]
[1754377775729,6.27290339,167.98,167.96,66.23019997]
[1754377776430,6.27290339,167.97,167.96,66.23019997]
[1754377778027,0.67,167.98,167.96,66.23019997]
[1754377778329,6.27290339,167.97,167.96,66.23019997]
[1754377778915,6.27290339,167.98,167.96,66.23019997]
[1754377779326,6.94290339,167.98,167.96,66.23019997]
[1754377779626,6.27290339,167.98,167.94,72.24450618]
[1754377779834,6.27290339,167.98,167.94,72.95450618]
[1754377780242,6.27290339,167.99,167.95,0.71]
[1754377780527,6.62194874,168.02,167.96,6.27290339]
[1754377780738,6.27290339,168.01,167.97,0.71]
[1754377780899,6.27290339,168.01,167.96,72.50310336]
[1754377781217,6.27290339,168.0,167.97,0.71]
[1754377781418,6.27290339,168.0,167.96,66.23019997]
[1754377781610,6.27290339,167.98,167.96,66.23019997]
[1754377782535,6.94290339,167.97,167.96,66.23019997]
[1754377782914,6.27290339,167.97,167.96,66.23019997]
[1754377783519,6.94290339,167.97,167.94,66.29019997]
[1754377783723,6.27290339,167.96,167.94,66.29019997]
[1754377784443,0.67,167.97,167.94,66.29019997]
[1754377784444,6.27290339,167.95,167.94,66.29019997]
[1754377785128,6.27290339,167.96,167.94,66.29019997]
[1754377785837,6.27290339,167.99,167.95,0.71]
[1754377786061,15.10621557,167.99,167.95,0.71]
[1754377786344,21.37911896,167.99,167.96,0.71]
[1754377786718,48.17290339,168.0,167.97,0.71]
[1754377787235,6.27290339,167.99,167.97,0.71]
[1754377787436,6.27290339,167.99,167.95,0.71]
[1754377787633,6.27290339,168.01,167.96,48.17290339]
[1754377787833,6.27290339,168.01,167.97,0.71]
[1754377788228,6.94290339,168.01,167.97,0.71]
[1754377788549,6.94290339,168.01,167.97,66.94019997]
[1754377789026,6.27290339,168.01,167.97,66.94019997]
[1754377789521,6.27290339,168.01,167.97,72.18354264]
[1754377789724,21.37911896,168.02,167.98,0.71]
[1754377790133,6.27290339,168.01,167.99,0.71]
[1754377790451,6.94290339,168.01,167.97,66.94019997]
[1754377793031,6.27290339,168.01,167.97,66.94019997]
[1754377793239,21.0579749,168.02,167.98,0.71]
[1754377793444,6.27290339,168.01,167.98,0.71]
[1754377793817,6.27290339,168.01,167.97,66.23019997]
[1754377793818,6.27290339,167.99,167.97,66.23019997]
[1754377794024,22.04911896,167.98,167.94,0.06]
[1754377794264,6.27290339,167.95,167.94,0.06]
[1754377795219,12.89705641,167.95,167.94,0.06]
[1754377795421,28.00327198,167.95,167.94,0.06]
[1754377797625,69.90327198,167.95,167.94,0.06]
[1754377798155,63.27911896,167.95,167.94,0.06]
[1754377799023,69.23327198,167.95,167.94,0.06]
[1754377800131,63.27911896,167.95,167.94,0.06]
[1754377800660,69.93327198,167.95,167.94,0.06]
[1754377800877,69.93327198,167.95,167.92,0.06]
[1754377800878,41.10621557,167.93,167.92,0.06]
[1754377801085,35.94947425,167.92,167.86,0.06]
[1754377801261,6.27290339,167.87,167.86,0.06]
[1754377801461,48.17290339,167.87,167.86,0.06]
[1754377803348,69.23610948,167.87,167.86,0.06]
[1754377803554,63.27911896,167.87,167.86,0.06]
[1754377805062,69.23610948,167.87,167.86,0.06]
[1754377805385,69.93610948,167.87,167.86,0.06]
[1754377806064,69.23610948,167.87,167.86,0.06]
[1754377806954,41.9,167.87,167.86,0.77]
[1754377807965,48.17290339,167.87,167.86,0.06]
[1754377808853,48.17290339,167.87,167.86,0.77]
[1754377809073,41.9,167.87,167.86,0.77]
[1754377810581,41.92,167.88,167.86,12.99997471]
[1754377810784,41.92,167.88,167.87,0.71]
[1754377811467,21.0614509,167.92,167.87,0.71]
[1754377811787,48.17290339,167.91,167.87,0.71]
[1754377811979,48.17290339,167.91,167.88,0.71]
[1754377813397,41.9,167.91,167.88,0.71]
[1754377814588,41.9,167.91,167.88,12.93946707]
[1754377814774,41.9,167.91,167.89,0.71]
[1754377815586,48.17290339,167.91,167.87,12.93979508]
[1754377816087,41.9,167.91,167.87,12.93979508]
[1754377817279,42.06,167.91,167.87,12.93979508]
[1754377817469,0.16,167.9,167.86,12.29013231]
[1754377817785,0.16,167.9,167.86,13.00013231]
[1754377817961,48.33290339,167.89,167.86,0.06]
[1754377818168,48.33290339,167.89,167.86,87.56]
[1754377819702,41.9,167.89,167.86,94.22724319]
[1754377819893,41.9,167.89,167.87,0.71]
[1754377821304,41.9,167.89,167.86,93.51724319]
[1754377821673,41.9,167.89,167.88,6.27290339]
[1754377822207,41.9,167.89,167.87,6.98290339]
[1754377822707,41.9,167.89,167.86,99.79014658]
[1754377822906,41.9,167.89,167.87,6.98290339]
[1754377823083,41.9,167.89,167.87,6.27290339]
[1754377823285,41.9,167.89,167.88,0.71]
[1754377824102,41.9,167.89,167.88,6.66663569]
[1754377824280,41.9,167.89,167.88,0.71]
[1754377824618,41.9,167.89,167.87,87.5]
[1754377824801,41.9,167.89,167.88,0.71]
[1754377825489,15.10621557,167.92,167.88,6.98290339]
[1754377825699,15.10621557,167.92,167.89,6.98290339]
[1754377825901,41.9,167.91,167.89,6.98290339]
[1754377826107,41.9,167.91,167.89,12.93916529]
[1754377826302,41.9,167.91,167.89,6.98290339]
[1754377827186,41.9,167.91,167.88,6.27290339]
[1754377827403,41.9,167.91,167.88,6.98290339]
[1754377829802,41.9,167.91,167.88,100.43950073]
[1754377831110,41.9,167.91,167.88,94.48290339]
[1754377831404,41.9,167.91,167.88,93.77290339]
[1754377831612,22.08911896,167.9,167.88,87.5]
[1754377831795,42.61,167.89,167.88,87.5]
[1754377832221,41.9,167.89,167.88,87.5]
[1754377832518,41.9,167.89,167.88,88.16]
[1754377833217,26.0,167.93,167.88,100.38953908]
[1754377833381,41.9,167.92,167.9,6.27290339]
[1754377833589,41.9,167.92,167.91,0.66]
[1754377833891,41.9,167.92,167.89,6.93290339]
[1754377834107,15.10621557,167.91,167.88,93.77290339]
[1754377834405,48.88290339,167.9,167.88,87.5]
[1754377834609,41.9,167.9,167.88,87.5]
[1754377835686,47.85595558,167.9,167.88,87.5]
[1754377836300,57.00621557,167.9,167.89,0.66]
[1754377836699,57.00621557,167.9,167.88,87.5]
[1754377836903,57.00621557,167.9,167.88,88.16]
[1754377838209,57.00621557,167.9,167.88,87.5]
[1754377838712,57.00621557,167.9,167.87,6.27290339]
[1754377838713,57.00621557,167.9,167.87,93.77290339]
[1754377839015,57.00621557,167.9,167.88,0.66]
[1754377840316,57.00621557,167.9,167.87,87.5]
[1754377840613,57.71621557,167.9,167.87,87.5]
[1754377841215,57.00621557,167.9,167.87,87.5]
[1754377841407,57.00621557,167.9,167.87,88.16]
[1754377841712,41.9,167.91,167.88,0.66]
[1754377841916,41.9,167.91,167.89,6.93290339]
[1754377842101,42.05,167.91,167.87,93.77290339]
[1754377842419,15.25621557,167.9,167.87,87.5]
[1754377842890,21.37911896,167.88,167.87,87.5]
[1754377843216,21.37911896,167.88,167.86,0.06]
[1754377843217,63.42911896,167.88,167.86,0.06]
[1754377843389,21.52911896,167.87,167.86,0.06]
[1754377844210,53.48610948,167.87,167.86,0.06]
[1754377846312,57.43251889,167.87,167.86,0.06]
[1754377847220,31.43251889,167.87,167.86,0.06]
[1754377847722,15.10621557,167.86,167.85,0.06]
[1754377847918,74.20569077,167.86,167.84,0.06]
[1754377848221,58.30569077,167.85,167.84,0.06]
[1754377848427,32.30569077,167.85,167.84,1e-08]
[1754377848927,32.30569077,167.85,167.79,0.06]
[1754377848928,41.10621557,167.83,167.79,0.06]
[1754377849126,95.23752925,167.83,167.79,0.06]
[1754377849316,73.88504711,167.83,167.82,1e-08]
[1754377850301,69.94752925,167.83,167.82,1e-08]
[1754377852621,41.10621557,167.8,167.79,0.06]
[1754377852810,89.27911896,167.8,167.79,0.06]
[1754377853003,89.98911896,167.8,167.79,0.06]
[1754377853402,95.94859452,167.8,167.79,0.06]
[1754377854800,95.23859452,167.8,167.79,0.06]
[1754377855412,95.94859452,167.8,167.79,0.06]
[1754377855831,95.23859452,167.8,167.79,0.06]
[1754377856811,95.94859452,167.8,167.79,0.06]
[1754377857450,95.23859452,167.8,167.79,0.06]
[1754377859117,88.96569113,167.8,167.79,0.72]
[1754377859835,5.95851533,167.83,167.79,0.72]
[1754377860039,57.02621557,167.82,167.79,0.72]
[1754377860228,67.1543179,167.82,167.79,0.72]
[1754377860537,67.1543179,167.82,167.8,6.27290339]
[1754377860538,6.36850023,167.81,167.8,6.27290339]
[1754377860719,48.28850023,167.81,167.8,6.93290339]
[1754377860932,63.3947158,167.81,167.79,0.06]
[1754377861131,15.10621557,167.8,167.79,0.72]
[1754377861329,25.08802341,167.8,167.79,0.06]
[1754377861531,31.04749897,167.8,167.79,0.06]
[1754377862156,37.32040236,167.8,167.79,0.06]
[1754377862356,25.08802341,167.8,167.79,0.06]
[1754377862666,37.32040236,167.8,167.79,0.06]
[1754377864121,37.99040236,167.8,167.79,0.06]
[1754377867849,37.32040236,167.8,167.79,0.06]
[1754377868059,57.04749897,167.8,167.79,0.72]
[1754377868349,63.32040236,167.8,167.79,0.06]
[1754377869153,51.08802341,167.8,167.79,0.72]
[1754377869337,67.00802341,167.8,167.79,0.72]
[1754377870443,79.24040236,167.8,167.79,0.72]
[1754377870760,79.24040236,167.8,167.79,0.06]
[1754377872359,72.96749897,167.8,167.79,0.72]
[1754377874438,62.98569113,167.8,167.79,0.72]
[1754377874956,69.25859452,167.8,167.79,0.06]
[1754377876641,62.98569113,167.8,167.79,0.06]
[1754377877058,69.25859452,167.8,167.79,0.06]
[1754377877245,95.92859452,167.8,167.79,0.06]
[1754377877642,95.25859452,167.8,167.79,0.06]
[1754377878054,95.25859452,167.8,167.79,0.72]
[1754377878256,95.25859452,167.8,167.79,0.06]
[1754377878963,95.92859452,167.8,167.79,0.06]
[1754377879261,95.25859452,167.8,167.79,0.06]
[1754377880247,95.92859452,167.8,167.79,0.06]
[1754377880465,69.92859452,167.8,167.79,0.06]
[1754377881269,15.10621557,167.8,167.79,0.06]
[1754377881440,9.61174523,167.81,167.79,0.06]
[1754377881441,9.61174523,167.81,167.79,6.99290339]
[1754377881645,8.19174523,167.81,167.8,6.93290339]
[1754377881847,8.19174523,167.81,167.8,6.27290339]
[1754377882372,8.19174523,167.81,167.8,12.23237895]
[1754377884548,8.19174523,167.81,167.8,6.27290339]
[1754377884869,8.19174523,167.81,167.79,6.33290339]
[1754377885265,8.19174523,167.81,167.79,0.06]
[1754377885655,8.19174523,167.81,167.79,6.33290339]
[1754377885849,8.86174523,167.81,167.79,0.06]
[1754377886049,57.67621557,167.8,167.79,0.06]
[1754377886673,69.90859452,167.8,167.79,0.06]
[1754377888869,63.63569113,167.8,167.79,0.06]
[1754377889042,72.17152899,167.8,167.79,0.06]
[1754377895063,63.63569113,167.8,167.79,0.06]